bitfinex/quotes_ETHUSD_20251127
["timestamp","ask_amount","ask_price","bid_price","bid_amount"]
[1764259975501,0.31135913,3015.5,3015.4,5.01929284]
[1764259975923,0.31135913,3015.5,3015.4,4.98612975]
[1764259978574,0.41075913,3015.5,3015.4,5.22682386]
[1764259978937,0.41075913,3015.5,3015.4,5.71172386]
[1764259979105,0.41075913,3015.5,3015.4,6.20338695]
[1764259979912,0.31135913,3015.5,3015.4,7.35409567]
[1764259980118,0.31135913,3015.5,3015.4,7.32093258]
[1764259981005,0.31135913,3015.5,3015.4,5.22682386]
[1764259981206,0.31135913,3015.5,3015.4,5.74588695]
[1764259981816,0.31135913,3015.5,3015.4,6.20438695]
[1764259982717,0.31135913,3015.5,3015.4,5.26098695]
[1764259982934,0.31135913,3015.5,3015.4,6.17122386]
[1764259983138,0.31135913,3015.5,3015.4,6.20438695]
[1764259984934,0.41195913,3015.5,3015.4,5.22782386]
[1764259987138,0.41195913,3015.5,3015.4,4.50222975]
[1764259987456,0.41195913,3015.5,3015.4,3.3504727]
[1764259987950,0.41075913,3015.5,3015.4,3.8353727]
[1764259988150,0.41075913,3015.5,3015.4,3.3504727]
[1764259988661,0.41075913,3015.5,3015.4,4.53539284]
[1764259989444,0.41075913,3015.5,3015.4,5.02029284]
[1764259990052,0.31135913,3015.5,3015.4,5.47879284]
[1764259990648,0.31135913,3015.5,3015.4,4.2938727]
[1764259992652,0.31135913,3015.5,3015.4,10.97612772]
[1764259992820,0.31135913,3015.5,3015.4,9.16568362]
[1764259993147,0.31135913,3015.5,3015.4,10.94600633]
[1764259993361,0.31135913,3015.5,3015.4,10.94601745]
[1764259994963,0.31135913,3015.5,3015.4,9.16568362]
[1764259995857,0.31135913,3015.5,3015.4,9.37568362]
[1764259996629,0.31055913,3015.5,3015.4,9.16568362]
[1764259996830,0.31055913,3015.5,3015.4,9.37568362]
[1764259997966,0.0004,3015.5,3015.4,9.88086347]
[1764260000464,0.0004,3015.5,3015.4,9.78118762]
[1764260001036,0.0004,3015.5,3015.4,9.88086347]
[1764260001239,0.002,3015.8,3015.6,0.405504]
[1764260001438,0.002,3015.8,3015.7,4.95785636]
[1764260001652,0.002,3016.2,3015.8,1.60539811]
[1764260001967,0.002,3016.2,3016.1,4.61731672]
[1764260002155,0.002,3016.2,3016.1,5.05597611]
[1764260002348,0.30999394,3017.4,3016.2,1.60539811]
[1764260002544,0.30999394,3017.3,3016.5,4.82502072]
[1764260002770,0.30999394,3017.2,3016.5,5.5091368]
[1764260002982,0.30999394,3017.1,3016.5,5.9903368]
[1764260003151,0.30999394,3017.0,3016.5,9.30543708]
[1764260003468,0.0012,3017.7,3016.5,9.30543708]
[1764260003765,0.30977278,3017.4,3016.5,9.30543708]
[1764260003967,0.30977278,3017.3,3016.5,9.30543708]
[1764260004172,0.30977278,3017.2,3016.5,9.30543708]
[1764260004371,0.30977278,3017.1,3016.5,10.48584307]
[1764260004574,0.30977278,3017.0,3016.5,10.48584307]
[1764260004739,0.0012,3017.7,3016.5,10.48584307]
[1764260004940,0.3096017,3017.4,3016.5,10.48584307]
[1764260005271,0.3096017,3017.3,3016.5,10.48584307]
[1764260005478,0.3096017,3017.2,3016.5,10.48584307]
[1764260005639,0.3096017,3017.1,3016.5,10.48584307]
[1764260005841,0.0072,3017.6,3016.5,10.48584307]
[1764260006056,0.30946911,3017.4,3016.5,10.48584307]
[1764260006257,0.30946911,3017.3,3016.5,10.48584307]
[1764260006571,0.006,3017.6,3016.5,9.30543708]
[1764260006771,0.30934577,3017.4,3016.5,9.30543708]
[1764260007082,0.30934577,3017.3,3016.5,9.30543708]
[1764260007244,0.006,3017.6,3016.5,9.51543708]
[1764260007446,0.31042056,3017.4,3016.5,6.85907407]
[1764260007645,0.0012,3017.1,3016.5,5.21945799]
[1764260007844,0.30922056,3017.0,3016.5,5.13486121]
[1764260008148,3.31701966,3017.5,3016.5,5.13486121]
[1764260008149,0.0044,3016.6,3016.5,3.31510028]
[1764260008368,0.1038,3016.6,3016.5,3.34825128]
[1764260008611,0.1026,3016.6,3016.5,3.34825128]
[1764260008880,0.41182056,3016.6,3016.5,3.34825128]
[1764260009259,0.1038,3016.6,3016.5,3.34825128]
[1764260009583,0.41182056,3016.6,3016.5,3.34825128]
[1764260010154,0.1026,3016.6,3016.5,3.34825128]
[1764260010640,0.41182056,3016.6,3016.5,3.34825128]
[1764260010846,0.31242056,3016.6,3016.5,3.34825128]
[1764260011087,0.002,3016.6,3016.5,3.82255128]
[1764260011551,0.31122056,3016.6,3016.5,4.30375128]
[1764260011746,0.002,3016.6,3016.5,4.30375128]
[1764260013073,0.002,3016.6,3016.5,8.3062694]
[1764260013251,0.002,3016.6,3016.5,9.88287933]
[1764260013975,0.002,3016.6,3016.5,10.28838333]
[1764260014143,0.002,3016.6,3016.5,9.40421651]
[1764260014347,0.002,3016.6,3016.5,10.58298011]
[1764260014552,0.002,3016.6,3016.5,11.17720335]
[1764260015479,0.002,3017.0,3016.9,7.66538146]
[1764260015776,0.002,3017.0,3016.9,9.44769635]
[1764260015961,0.002,3017.0,3016.9,10.0285722]
[1764260016171,0.003,3017.5,3016.9,19.87287857]
[1764260016366,0.003,3017.5,3017.4,6.00295838]
[1764260016564,0.003,3017.5,3017.4,6.21295838]
[1764260016767,1e-08,3017.6,3017.5,1.70507396]
[1764260016948,1e-08,3017.6,3017.5,3.26370922]
[1764260017343,1e-08,3017.6,3017.5,3.36338507]
[1764260017580,1e-08,3017.6,3017.5,5.53341562]
[1764260017878,1e-08,3017.6,3017.5,7.20064627]
[1764260018078,1e-08,3017.6,3017.5,7.37470273]
[1764260019451,1e-08,3017.6,3017.5,7.47437858]
[1764260019646,1e-08,3017.6,3017.5,7.37470273]
[1764260020260,0.00040001,3019.0,3017.5,20.14950933]
[1764260020462,0.0994,3018.9,3017.9,0.881154]
[1764260020667,0.0994,3018.9,3018.0,0.21]
[1764260021283,0.30837199,3019.0,3018.1,0.21]
[1764260021481,0.0994,3018.4,3018.1,0.21]
[1764260021686,0.0994,3018.4,3018.2,6.6264661]
[1764260021857,0.0994,3018.8,3018.2,6.6264661]
[1764260022059,0.30823344,3019.1,3018.2,9.93969915]
[1764260022272,0.0994,3018.9,3018.2,9.93969915]
[1764260022590,0.30823344,3018.9,3018.2,14.1069979]
[1764260022800,0.30823344,3018.8,3018.2,14.1069979]
[1764260023095,0.0994,3019.1,3018.2,14.1069979]
[1764260024098,0.40758224,3019.1,3018.2,14.1069979]
[1764260024300,0.30818224,3019.0,3018.2,14.1069979]
[1764260024508,0.30818224,3018.9,3018.2,14.1069979]
[1764260024671,0.30818224,3018.8,3018.2,14.1069979]
[1764260025008,0.0994,3019.1,3018.2,14.1069979]
[1764260025174,0.0994,3019.1,3018.2,10.32346485]
[1764260025377,0.0994,3019.1,3018.3,0.72559411]
[1764260025596,0.0994,3019.1,3018.3,2.75325454]
[1764260025794,0.0994,3019.1,3018.4,9.93904053]
[1764260025998,0.0994,3019.1,3018.5,0.21]
[1764260026579,0.0994,3019.1,3018.5,0.24312903]
[1764260026970,0.0994,3019.2,3018.5,0.96872314]
[1764260027171,0.0994,3019.2,3018.5,2.25895243]
[1764260027509,0.0994,3019.3,3018.5,2.72925243]
[1764260027797,0.0994,3019.3,3018.6,9.93838203]
[1764260028695,0.30814436,3019.4,3018.6,10.40868203]
[1764260029090,0.30814436,3019.4,3018.7,0.4703]
[1764260029291,0.30814436,3019.4,3018.8,0.03312574]
[1764260029490,0.13440495,3020.0,3018.9,0.21]
[1764260029797,0.0994,3019.7,3019.0,6.62471016]
[1764260029999,0.0994,3019.4,3019.0,6.62471016]
[1764260030181,0.0994,3019.4,3019.0,9.93706524]
[1764260030984,0.0994,3019.4,3019.1,0.03312245]
[1764260031179,0.30805111,3019.5,3019.1,0.03312245]
[1764260031373,0.13440495,3020.0,3019.2,0.4703]
[1764260031593,0.30800439,3019.9,3019.3,0.21]
[1764260031780,0.0994,3019.8,3019.4,6.62383254]
[1764260032099,0.40740439,3019.8,3019.4,6.62383254]
[1764260032303,0.30800439,3019.7,3019.5,0.21]
[1764260032602,0.002,3019.6,3019.5,0.21]
[1764260033269,0.002,3019.6,3019.5,0.7088]
[1764260033469,0.002,3019.6,3019.4,6.62383254]
[1764260033803,0.002,3019.6,3019.5,4.7405107]
[1764260034915,0.002,3019.6,3019.5,5.2108107]
[1764260035407,0.002,3019.6,3019.5,4.5362007]
[1764260035576,0.002,3019.6,3019.5,4.2474007]
[1764260035908,0.002,3019.6,3019.5,4.7462007]
[1764260036114,0.002,3019.6,3019.5,5.65607479]
[1764260036273,0.002,3019.6,3019.5,5.68919285]
[1764260036707,0.002,3019.6,3019.5,6.15949285]
[1764260038297,0.002,3019.9,3019.5,6.35499685]
[1764260038504,0.13440495,3022.3,3020.1,0.405504]
[1764260038730,0.02,3022.4,3021.3,0.405504]
[1764260038914,0.02,3022.4,3021.2,0.87577306]
[1764260039242,0.02,3022.4,3022.3,1.42409411]
[1764260039411,0.02,3022.4,3022.3,1.89439411]
[1764260039735,3.30553955,3024.6,3022.5,0.405504]
[1764260039932,0.0994,3024.1,3023.4,3.20613955]
[1764260040123,0.0994,3024.1,3022.9,0.72559411]
[1764260040124,0.0994,3023.8,3022.9,0.72559411]
[1764260040329,3.22653955,3024.6,3022.9,0.72559411]
[1764260040503,1.314632,3025.6,3022.9,1.19589411]
[1764260040504,0.21,3025.1,3022.9,1.19589411]
[1764260040836,0.0994,3024.6,3023.3,0.405504]
[1764260041036,0.0994,3025.5,3024.0,0.72559411]
[1764260041270,0.34131396,3025.6,3023.2,0.87320921]
[1764260041271,2.711319,3025.4,3023.2,0.87320921]
[1764260041547,2.711319,3025.4,3022.9,0.72559411]
[1764260041548,0.0994,3024.2,3022.9,0.72559411]
[1764260041758,0.0204,3023.3,3022.9,0.72559411]
[1764260042047,0.74927725,3025.3,3023.1,0.72559411]
[1764260042048,0.0994,3024.3,3023.1,0.72559411]
[1764260042217,0.0204,3025.2,3023.3,0.72559411]
[1764260042439,0.0994,3025.8,3024.2,0.6985]
[1764260042733,0.0204,3025.9,3024.3,0.6813]
[1764260042925,0.0994,3025.3,3024.4,0.211]
[1764260043124,0.0994,3025.3,3024.5,0.211]
[1764260043334,0.0204,3025.2,3023.9,0.4703]
[1764260043535,0.0204,3026.0,3024.1,0.1997]
[1764260043735,0.0994,3025.2,3024.1,0.1997]
[1764260043917,0.0994,3025.5,3024.4,0.72559411]
[1764260044115,0.0994,3025.8,3024.5,0.211]
[1764260044323,0.0994,3026.0,3024.4,0.72559411]
[1764260044647,0.0204,3026.6,3024.6,4.56835046]
[1764260044855,0.0994,3025.8,3024.5,0.4703]
[1764260045004,0.72559411,3026.0,3024.1,3.50636802]
[1764260045210,0.48884406,3025.9,3024.1,0.4117]
[1764260045406,0.72559411,3025.6,3023.6,3.30731578]
[1764260045636,0.0994,3024.5,3023.6,3.30731578]
[1764260045806,9.91146411,3026.8,3024.2,4.16284646]
[1764260046005,5.29394457,3026.5,3024.5,0.72559411]
[1764260046222,0.0994,3025.2,3024.5,0.72559411]
[1764260047140,0.0994,3025.2,3024.3,0.1997]
[1764260047359,0.0204,3025.8,3024.4,0.72559411]
[1764260047560,0.0994,3025.3,3024.4,0.72559411]
[1764260047853,0.0994,3025.0,3024.3,0.1997]
[1764260048072,0.0204,3026.0,3023.2,3.50736711]
[1764260048073,0.0994,3024.7,3023.8,0.6823]
[1764260048220,0.0994,3024.7,3023.9,0.72559411]
[1764260048417,0.72559411,3025.3,3023.6,0.212]
[1764260048418,0.0994,3024.4,3023.6,0.212]
[1764260048622,0.0994,3024.1,3023.6,0.212]
[1764260048856,0.0994,3024.1,3023.4,0.212]
[1764260049162,0.0994,3024.1,3023.2,0.1997]
[1764260049163,0.0204,3023.7,3023.2,0.03307753]
[1764260049366,0.405504,3025.3,3025.1,0.6985]
[1764260049521,0.0994,3026.2,3025.2,0.212]
[1764260049718,0.0204,3025.3,3024.7,0.1997]
[1764260050013,0.0994,3025.6,3024.8,0.72559411]
[1764260050442,0.0204,3025.6,3024.8,0.72559411]
[1764260050641,0.0994,3025.5,3024.7,4.03170369]
[1764260050843,0.0994,3025.5,3024.7,0.72559411]
[1764260051044,4.29607019,3027.6,3024.7,0.72559411]
[1764260051045,0.002,3027.2,3025.5,1.13109811]
[1764260051246,0.002,3027.2,3026.0,0.4946]
[1764260051445,0.002,3027.2,3026.1,0.213]
[1764260051621,0.0204,3027.1,3026.1,0.1993]
[1764260051821,0.0204,3027.1,3026.1,0.4123]
[1764260052037,0.0994,3027.1,3026.2,3.30447425]
[1764260052235,0.0994,3027.1,3026.3,0.72559411]
[1764260052434,6.60567426,3027.7,3026.1,0.4123]
[1764260052435,0.72559411,3027.6,3026.1,0.1993]
[1764260052641,0.0994,3026.9,3026.1,3.50387178]
[1764260052878,0.0994,3027.3,3026.2,0.72559411]
[1764260053020,0.0994,3027.0,3026.1,7.28815523]
[1764260053223,0.72559411,3027.7,3026.1,0.1993]
[1764260053457,0.72559411,3027.7,3026.2,0.213]
[1764260053458,0.0994,3026.7,3026.2,0.213]
[1764260053629,0.405504,3027.4,3026.0,0.213]
[1764260053842,0.0994,3026.9,3026.0,0.72559411]
[1764260054034,0.0994,3026.9,3026.0,3.30466971]
[1764260054230,0.0994,3027.0,3026.0,0.72559411]
[1764260054545,6.60654708,3027.3,3026.0,1.20529411]
[1764260054867,0.0994,3027.0,3026.0,1.20529411]
[1764260055063,0.05855276,3027.8,3027.3,0.6731]
[1764260055271,0.05855276,3027.8,3027.7,1.62279811]
[1764260055479,0.05855276,3027.8,3027.7,0.4917]
[1764260055633,0.05855276,3027.8,3025.9,20.02807261]
[1764260055634,0.05855276,3027.8,3027.1,0.99215371]
[1764260055830,0.39466858,3027.8,3026.5,0.4586]
[1764260056131,0.0994,3027.2,3026.0,0.4586]
[1764260056334,0.0994,3027.2,3026.0,3.97629266]
[1764260056570,0.0994,3026.8,3026.0,3.97629266]
[1764260056734,0.0994,3026.8,3026.0,7.28098532]
[1764260057068,0.405504,3027.6,3026.0,0.4586]
[1764260057363,0.0994,3026.5,3025.9,0.4123]
[1764260057533,0.0994,3026.5,3025.9,3.7170842]
[1764260057732,0.0994,3026.5,3025.9,0.4123]
[1764260057938,0.05855276,3027.8,3026.4,0.4917]
[1764260058140,0.0994,3027.5,3026.5,0.93959411]
[1764260058337,0.0994,3027.5,3026.5,1.74357385]
[1764260058541,0.05855276,3027.8,3026.6,0.4586]
[1764260058542,0.0994,3027.7,3026.6,0.4586]
[1764260059084,0.05855276,3027.8,3026.7,0.214]
[1764260059231,0.0994,3027.7,3026.7,0.214]
[1764260059436,0.0994,3027.7,3026.7,0.6726]
[1764260059643,0.44545882,3027.7,3026.7,0.6726]
[1764260059965,0.15795276,3027.8,3026.8,0.4586]
[1764260060169,0.15795276,3027.8,3027.0,0.72559411]
[1764260060374,0.05855276,3027.8,3027.0,0.93959411]
[1764260060566,0.05855276,3027.8,3027.1,0.1814]
[1764260061460,0.05855276,3027.8,3026.5,4.16284646]
[1764260061461,0.0994,3027.6,3026.8,0.1814]
[1764260061661,0.0994,3027.3,3026.5,0.03304146]
[1764260061971,4.16284646,3027.2,3025.4,0.1814]
[1764260062163,0.214,3027.1,3025.5,3.33825455]
[1764260062367,0.214,3027.1,3025.5,0.03305238]
[1764260062570,0.0994,3025.9,3025.5,0.03305238]
[1764260062750,0.0994,3026.8,3025.1,0.4586]
[1764260062950,0.0994,3026.5,3025.2,0.03305566]
[1764260063350,0.0994,3026.2,3025.3,0.49165457]
[1764260063551,0.0994,3026.2,3024.9,7.2517888]
[1764260063746,0.0994,3025.8,3025.0,0.03305785]
[1764260063980,0.0994,3025.8,3025.0,1.50853663]
[1764260064158,6.60983452,3025.8,3024.9,0.1814]
[1764260064367,0.0994,3025.5,3024.9,3.4872944]
[1764260064569,0.0994,3025.5,3025.0,0.03305785]
[1764260064772,0.0994,3025.2,3024.5,3.3073262]
[1764260065084,0.0994,3025.5,3024.5,7.10532113]
[1764260065286,0.214,3025.8,3024.5,0.4596]
[1764260065579,0.0994,3025.2,3024.5,0.001]
[1764260065785,0.405504,3025.7,3024.5,0.001]
[1764260065951,0.0994,3024.9,3024.5,0.001]
[1764260066149,0.0994,3024.6,3024.5,0.001]
[1764260066679,0.214,3024.6,3024.5,0.001]
[1764260066986,0.3134,3024.7,3024.5,0.001]
[1764260067166,0.0994,3024.7,3024.5,0.001]
[1764260067766,6.61091462,3025.3,3024.5,0.001]
[1764260067955,0.0996,3024.7,3024.5,0.001]
[1764260068150,7.01706816,3024.8,3024.5,0.001]
[1764260068365,5.04596633,3024.7,3024.1,0.001]
[1764260068569,0.0996,3024.2,3024.1,0.001]
[1764260068782,0.8104476,3024.2,3024.1,0.001]
[1764260068987,0.505104,3023.9,3023.8,0.001]
[1764260069201,0.8104476,3023.9,3023.8,0.001]
[1764260069895,0.4049436,3023.9,3023.8,0.001]
[1764260070199,4.33143526,3023.9,3023.8,0.001]
[1764260070374,0.4049436,3023.9,3023.8,0.001]
[1764260070562,0.6189436,3023.9,3023.8,0.001]
[1764260070767,0.79753439,3023.9,3023.8,0.001]
[1764260070962,0.4049436,3023.9,3023.8,0.001]
[1764260071167,0.6189436,3023.9,3023.8,0.001]
[1764260071600,0.4049436,3023.9,3023.8,0.001]
[1764260072138,0.3053436,3024.0,3023.8,0.001]
[1764260072271,6.6117888,3024.9,3023.8,0.001]
[1764260072597,0.0996,3023.9,3023.8,0.001]
[1764260073295,0.30608665,3024.1,3023.8,0.001]
[1764260073604,0.214,3024.3,3023.8,0.001]
[1764260073801,0.0996,3024.4,3023.8,0.03407097]
[1764260073971,0.0996,3024.5,3023.8,0.4596]
[1764260074318,0.4055738,3024.5,3023.9,3.30698766]
[1764260074499,0.4055738,3024.5,3024.0,0.03306878]
[1764260074671,0.3059738,3024.4,3024.0,0.03306878]
[1764260075001,0.0996,3024.5,3024.0,0.03306878]
[1764260075498,0.4054699,3024.5,3024.0,0.03306878]
[1764260075697,0.4054699,3024.5,3023.9,0.03306987]
[1764260075901,0.79803077,3024.5,3023.8,0.001]
[1764260076068,0.0996,3024.2,3023.8,0.001]
[1764260076279,0.0996,3023.9,3023.8,0.001]
[1764260077579,0.40528416,3023.9,3023.8,0.001]
[1764260078201,0.3136,3023.9,3023.8,0.001]
[1764260078401,3.92628168,3023.9,3023.8,0.001]
[1764260078602,4.31890985,3023.9,3023.8,0.001]
[1764260079184,4.72441385,3023.9,3023.8,0.001]
[1764260079710,5.45000796,3023.9,3023.8,0.001]
[1764260081289,8.12912296,3023.9,3023.8,0.001]
[1764260081496,5.45000796,3023.9,3023.8,0.001]
[1764260082088,5.23600796,3023.9,3023.8,0.001]
[1764260082413,4.83050396,3023.9,3023.8,0.001]
[1764260082916,0.79792219,3023.9,3023.8,0.001]
[1764260083115,1.01192219,3023.9,3023.8,0.001]
[1764260083412,4.65187579,3023.9,3023.8,0.001]
[1764260084046,5.05737979,3023.9,3023.8,0.001]
[1764260084943,1.34488813,3023.9,3023.8,0.001]
[1764260085144,3.92628168,3023.9,3023.8,0.001]
[1764260086020,4.33178568,3023.9,3023.8,0.001]
[1764260086226,5.09565223,3023.9,3023.8,0.001]
[1764260088263,4.88165223,3023.9,3023.8,0.001]
[1764260088465,4.69014823,3023.9,3023.8,0.001]
[1764260088963,0.30569402,3023.9,3023.8,0.4947]
[1764260089161,0.002,3024.3,3023.8,0.9455]
[1764260089162,0.0996,3024.1,3023.8,0.9455]
[1764260089343,0.002,3024.3,3024.2,0.1856]
[1764260089542,0.30824381,3024.3,3024.2,0.1856]
[1764260090556,0.62184381,3024.3,3024.2,0.1856]
[1764260091037,0.62184381,3024.3,3024.0,0.1856]
[1764260091038,0.0996,3024.1,3024.0,0.1856]
[1764260091443,0.40584381,3024.1,3024.0,4.4369783]
[1764260091643,0.30624381,3024.1,3024.0,4.4369783]
[1764260092066,0.30624381,3024.1,3024.0,4.88077613]
[1764260092249,0.002,3024.3,3024.0,8.18765443]
[1764260092443,0.002,3024.3,3024.0,3.93627613]
[1764260092444,0.30780072,3024.2,3024.0,3.93627613]
[1764260092647,0.30780072,3024.2,3024.0,3.4924783]
[1764260092648,0.30780072,3024.1,3024.0,3.4924783]
[1764260093347,0.30780072,3024.1,3024.0,3.9861783]
[1764260093670,0.30780072,3024.1,3024.0,4.4369783]
[1764260094452,0.30851789,3024.1,3024.0,4.4369783]
[1764260097959,0.002,3024.3,3024.0,7.7438566]
[1764260098159,0.002,3024.3,3024.1,1.64320531]
[1764260098160,0.30870233,3024.2,3024.1,1.64320531]
[1764260098652,0.30870233,3024.2,3024.1,5.44367426]
[1764260099639,0.002,3024.3,3024.1,8.75044321]
[1764260099942,0.002,3024.3,3024.2,0.9445]
[1764260100275,0.31061872,3024.3,3024.2,0.9445]
[1764260100476,0.31061872,3024.3,3024.2,0.4937]
[1764260100780,0.31061872,3024.3,3024.0,0.1856]
[1764260100972,0.30861872,3024.2,3024.0,0.1856]
[1764260101153,0.40841872,3024.1,3023.8,0.001]
[1764260101472,0.30861872,3024.0,3023.8,7.09902221]
[1764260101772,0.30861872,3023.9,3023.8,3.75885421]
[1764260101975,0.30861872,3023.9,3023.8,3.34112518]
[1764260102176,0.30861872,3023.9,3023.8,4.48514736]
[1764260102484,0.002,3024.3,3023.8,11.58321239]
[1764260102656,0.002,3024.3,3024.2,3.98595961]
[1764260102854,0.31057512,3024.3,3024.2,4.0190262]
[1764260103057,0.31057512,3024.3,3024.2,4.4698262]
[1764260103378,0.002,3024.7,3024.3,0.72559411]
[1764260103558,0.002,3025.0,3024.3,0.72559411]
[1764260103559,0.002,3025.0,3024.6,1.37225344]
[1764260103775,0.002,3025.0,3024.9,0.4937]
[1764260104252,0.002,3025.0,3024.9,2.03605344]
[1764260104986,0.002,3025.0,3024.9,5.18898851]
[1764260105288,0.002,3025.0,3024.9,7.0323575]
[1764260105585,0.002,3025.0,3024.9,6.15562807]
[1764260105951,0.002,3025.0,3024.9,7.03226779]
[1764260106315,0.002,3025.0,3024.9,7.03159456]
[1764260106500,0.002,3025.0,3024.9,6.09300045]
[1764260106659,0.002,3025.0,3024.9,4.2503944]
[1764260107059,0.1018,3025.0,3024.8,3.30597685]
[1764260107359,0.0998,3024.8,3024.5,3.30624905]
[1764260107559,0.1018,3025.0,3024.6,0.03306222]
[1764260107766,0.0998,3024.7,3024.5,3.30624905]
[1764260107956,0.002,3025.0,3024.5,3.33931236]
[1764260108155,0.1038,3024.6,3024.1,3.30676895]
[1764260108357,0.004,3024.6,3024.0,0.001]
[1764260108553,0.0998,3024.1,3024.0,0.001]
[1764260109660,0.1038,3024.1,3024.0,0.001]
[1764260110074,3.41456895,3024.1,3024.0,0.001]
[1764260110270,4.83069096,3024.1,3024.0,0.001]
[1764260110470,0.405504,3024.0,3023.8,0.001]
[1764260110793,4.12302316,3023.9,3023.8,0.001]
[1764260111087,4.12602316,3023.9,3023.8,0.001]
[1764260111265,4.85161727,3023.9,3023.8,0.001]
[1764260111469,8.42575044,3023.9,3023.8,0.001]
[1764260111886,9.04678844,3023.9,3023.8,0.001]
[1764260112422,6.60666,3023.7,3023.4,0.001]
[1764260112688,11.98189171,3023.7,3023.4,0.001]
[1764260112889,21.76000657,3023.7,3023.4,0.001]
[1764260113387,13.67316757,3023.7,3023.4,0.001]
[1764260113591,6.15960347,3023.7,3023.4,0.001]
[1764260114283,0.405504,3023.5,3023.4,0.001]
[1764260114466,6.10698012,3023.5,3023.4,0.001]
[1764260114790,10.23439828,3023.5,3023.4,0.001]
[1764260115400,5.76714128,3023.5,3023.4,0.001]
[1764260116661,5.55414128,3023.5,3023.4,0.001]
[1764260116992,5.76714128,3023.5,3023.4,0.001]
[1764260118105,8.79483228,3023.5,3023.4,0.001]
[1764260118305,5.76714128,3023.5,3023.4,0.001]
[1764260118667,11.50527428,3023.5,3023.4,0.001]
[1764260118867,7.84347728,3023.5,3023.4,0.001]
[1764260119087,5.76714128,3023.5,3023.4,0.001]
[1764260120008,10.49886128,3023.5,3023.4,0.001]
[1764260120365,8.43437428,3023.5,3023.4,0.001]
[1764260120560,5.76714128,3023.5,3023.4,0.001]
[1764260120865,8.43437428,3023.5,3023.4,0.001]
[1764260121994,8.43386128,3023.5,3023.4,0.001]
[1764260122573,5.76714128,3023.5,3023.4,0.001]
[1764260123469,9.28534028,3023.5,3023.4,0.001]
[1764260123670,5.76714128,3023.5,3023.4,0.001]
[1764260123900,9.28584528,3023.5,3023.4,0.001]
[1764260124104,5.76714128,3023.5,3023.4,0.001]
[1764260124967,8.39217728,3023.5,3023.4,0.001]
[1764260125405,5.76714128,3023.5,3023.4,0.001]
[1764260128583,9.26109828,3023.5,3023.4,0.001]
[1764260128773,8.06270228,3023.5,3023.4,0.001]
[1764260129301,8.21204528,3023.5,3023.4,0.001]
[1764260129505,10.90764528,3023.5,3023.4,0.001]
[1764260130201,10.12810728,3023.5,3023.4,0.001]
[1764260130602,11.78578128,3023.5,3023.4,0.001]
[1764260130901,9.33037328,3023.5,3023.4,0.001]
[1764260131670,11.02876728,3023.5,3023.4,0.001]
[1764260132382,9.15246828,3023.5,3023.4,0.001]
[1764260132708,8.14396028,3023.5,3023.4,0.001]
[1764260133703,9.52633828,3023.5,3023.4,0.001]
[1764260134606,11.44537928,3023.5,3023.4,0.001]
[1764260135079,10.59397928,3023.5,3023.4,0.001]
[1764260135273,9.52625728,3023.5,3023.4,0.001]
[1764260135473,8.01345528,3023.5,3023.4,0.001]
[1764260135695,12.38894228,3023.5,3023.4,0.001]
[1764260135895,14.58293211,3023.4,3023.3,0.001]
[1764260136205,12.49353988,3023.4,3023.3,0.001]
[1764260136412,15.80107444,3023.4,3023.3,0.001]
[1764260136610,12.91291134,3023.4,3023.3,0.001]
[1764260136779,8.38329634,3023.4,3023.3,0.001]
[1764260137793,11.28985434,3023.4,3023.3,0.001]
[1764260138708,11.29160534,3023.4,3023.3,0.001]
[1764260139114,11.29080534,3023.4,3023.3,0.001]
[1764260139414,8.38124734,3023.4,3023.3,0.001]
[1764260139612,8.38124734,3023.4,3022.7,0.001]
[1764260139613,0.505304,3022.8,3022.7,0.001]
[1764260139804,1.0260355,3022.8,3022.7,0.001]
[1764260140111,1.0260355,3022.8,3022.7,0.949]
[1764260140726,4.33422658,3022.8,3022.7,0.949]
[1764260141026,4.33422658,3022.8,3022.7,0.4913]
[1764260141027,5.09845795,3022.8,3022.7,0.4913]
[1764260141226,9.48716806,3022.8,3022.7,0.001]
[1764260141515,9.48716806,3022.8,3022.7,0.4913]
[1764260141516,5.82405206,3022.8,3022.7,0.4913]
[1764260142009,5.82405206,3022.8,3022.7,0.949]
[1764260142416,0.6205315,3022.8,3022.7,0.949]
[1764260142587,3.92872258,3022.8,3022.7,0.949]
[1764260142781,4.65431669,3022.8,3022.7,0.949]
[1764260142981,1.34612561,3022.8,3022.7,0.949]
[1764260143219,5.05982069,3022.8,3022.7,0.001]
[1764260143400,5.89661132,3022.8,3022.7,0.001]
[1764260143703,4.65431669,3022.8,3022.7,0.949]
[1764260144804,4.65431669,3022.8,3022.7,0.4913]
[1764260144805,5.05982069,3022.8,3022.7,0.4913]
[1764260145827,5.89038847,3022.8,3022.7,0.949]
[1764260146687,6.81667701,3022.8,3022.7,0.949]
[1764260148500,5.98610923,3022.8,3022.7,0.949]
[1764260149016,5.98610923,3022.8,3022.7,0.4913]
[1764260150194,6.91552944,3022.8,3022.7,0.001]
[1764260150622,6.91852944,3022.8,3022.7,0.001]
[1764260151392,5.9892409,3022.8,3022.7,0.001]
[1764260151588,6.91852944,3022.8,3022.7,0.001]
[1764260151789,1.13109811,3022.7,3022.6,0.001]
[1764260152107,2.92378103,3022.7,3022.6,0.001]
[1764260152711,2.92378103,3022.7,3022.6,0.949]
[1764260152712,1.13312561,3022.7,3022.6,0.949]
[1764260152891,2.05941415,3022.7,3022.6,0.949]
[1764260153097,2.46491815,3022.7,3022.6,0.949]
[1764260153288,5.77321867,3022.7,3022.6,0.949]
[1764260153512,1.73932404,3022.7,3022.6,0.949]
[1764260153711,5.77321867,3022.7,3022.6,0.949]
[1764260155424,4.84693013,3022.7,3022.6,0.949]
[1764260156012,1.53862961,3022.7,3022.6,0.949]
[1764260156200,4.84693013,3022.7,3022.6,0.949]
[1764260156923,1.53862961,3022.7,3022.6,0.949]
[1764260157112,4.84693013,3022.7,3022.6,0.949]